Workbook

Sheet _com.sap.ip.bi.xl.hiddensheet (hidden)

Sheet B1
A5: Electric Operations Revenue
A6: Twelve Months Ending - June 2019
A7: Allocation Method - Washington Inter-Jurisdictional Allocation Methodology
A8: (Allocated in Thousands)
A10: Primary Account | C10: Secondary Account | E10: Alloc | F10: Total | G10: Calif | H10: Oregon | I10: Wash | J10: Wyoming | K10: Wy-UPL | L10: Utah | M10: Idaho | N10: Wy-PPL | O10: FERC | P10: Other
A11: 4401000 | B11: RESIDENTIAL SALES | C11: 301100 | D11: RESIDENTIAL SALES | E11: CA | F11: -46709.91908 | G11: -46709.91908 | H11: 0 | I11: 0 | J11: =K11+N11 -> 0 | K11: 0 | L11: 0 | M11: 0 | N11: 0 | O11: 0 | P11: 0
A12: 4401000 | B12: RESIDENTIAL SALES | C12: 301100 | D12: RESIDENTIAL SALES | E12: IDU | F12: -77265.06821 | G12: 0 | H12: 0 | I12: 0 | J12: 0 | K12: 0 | L12: 0 | M12: -77265.06821 | N12: 0 | O12: 0 | P12: 0
A13: 4401000 | B13: RESIDENTIAL SALES | C13: 301100 | D13: RESIDENTIAL SALES | E13: OR | F13: -641470.4949 | G13: 0 | H13: -641470.4949 | I13: 0 | J13: 0 | K13: 0 | L13: 0 | M13: 0 | N13: 0 | O13: 0 | P13: 0
A14: 4401000 | B14: RESIDENTIAL SALES | C14: 301100 | D14: RESIDENTIAL SALES | E14: UT | F14: -760614.7491 | G14: 0 | H14: 0 | I14: 0 | J14: 0 | K14: 0 | L14: -760614.7491 | M14: 0 | N14: 0 | O14: 0 | P14: 0
A15: 4401000 | B15: RESIDENTIAL SALES | C15: 301100 | D15: RESIDENTIAL SALES | E15: WA | F15: -151544.93 | G15: 0 | H15: 0 | I15: -151544.93 | J15: 0 | K15: 0 | L15: 0 | M15: 0 | N15: 0 | O15: 0 | P15: 0
A16: 4401000 | B16: RESIDENTIAL SALES | C16: 301100 | D16: RESIDENTIAL SALES | E16: WYP | F16: -96239.75491 | G16: 0 | H16: 0 | I16: 0 | J16: -96239.75491 | K16: -96239.75491 | L16: 0 | M16: 0 | N16: 0 | O16: 0 | P16: 0
A17: 4401000 | B17: RESIDENTIAL SALES | C17: 301100 | D17: RESIDENTIAL SALES | E17: WYU | F17: -12534.34821 | G17: 0 | H17: 0 | I17: 0 | J17: -12534.34821 | K17: 0 | L17: 0 | M17: 0 | N17: -12534.34821 | O17: 0 | P17: 0
A18: 4401000 | B18: RESIDENTIAL SALES | C18: 301106 | D18: Residential-Alt Revenue Program Adjs | E18: WA | F18: -1597.39006 | G18: 0 | H18: 0 | I18: -1597.39006 | J18: 0 | K18: 0 | L18: 0 | M18: 0 | N18: 0 | O18: 0 | P18: 0
A19: 4401000 | B19: RESIDENTIAL SALES | C19: 301107 | D19: Residential Revenue Acctg Adjustments | E19: CA | F19: 676.1478 | G19: 676.1478 | H19: 0 | I19: 0 | J19: 0 | K19: 0 | L19: 0 | M19: 0 | N19: 0 | O19: 0 | P19: 0
A20: 4401000 | B20: RESIDENTIAL SALES | C20: 301107 | D20: Residential Revenue Acctg Adjustments | E20: IDU | F20: 251.49914 | G20: 0 | H20: 0 | I20: 0 | J20: 0 | K20: 0 | L20: 0 | M20: 251.49914 | N20: 0 | O20: 0 | P20: 0
A21: 4401000 | B21: RESIDENTIAL SALES | C21: 301107 | D21: Residential Revenue Acctg Adjustments | E21: OR | F21: 3146.89068 | G21: 0 | H21: 3146.89068 | I21: 0 | J21: 0 | K21: 0 | L21: 0 | M21: 0 | N21: 0 | O21: 0 | P21: 0
A22: 4401000 | B22: RESIDENTIAL SALES | C22: 301107 | D22: Residential Revenue Acctg Adjustments | E22: UT | F22: 1135.15843 | G22: 0 | H22: 0 | I22: 0 | J22: 0 | K22: 0 | L22: 1135.15843 | M22: 0 | N22: 0 | O22: 0 | P22: 0
A23: 4401000 | B23: RESIDENTIAL SALES | C23: 301107 | D23: Residential Revenue Acctg Adjustments | E23: WA | F23: 8932.1409 | G23: 0 | H23: 0 | I23: 8932.1409 | J23: 0 | K23: 0 | L23: 0 | M23: 0 | N23: 0 | O23: 0 | P23: 0
A24: 4401000 | B24: RESIDENTIAL SALES | C24: 301107 | D24: Residential Revenue Acctg Adjustments | E24: WYP | F24: -188.2101 | G24: 0 | H24: 0 | I24: 0 | J24: -188.2101 | K24: -188.2101 | L24: 0 | M24: 0 | N24: 0 | O24: 0 | P24: 0
A25: 4401000 | B25: RESIDENTIAL SALES | C25: 301108 | D25: Residential Revenue Adj - Deferred NPC M | E25: UT | F25: -1651.83994 | G25: 0 | H25: 0 | I25: 0 | J25: 0 | K25: 0 | L25: -1651.83994 | M25: 0 | N25: 0 | O25: 0 | P25: 0
A26: 4401000 | B26: RESIDENTIAL SALES | C26: 301108 | D26: Residential Revenue Adj - Deferred NPC M | E26: WA | F26: -62.6542 | G26: 0 | H26: 0 | I26: -62.6542 | J26: 0 | K26: 0 | L26: 0 | M26: 0 | N26: 0 | O26: 0 | P26: 0
A27: 4401000 | B27: RESIDENTIAL SALES | C27: 301108 | D27: Residential Revenue Adj - Deferred NPC M | E27: WYP | F27: 32.13922 | G27: 0 | H27: 0 | I27: 0 | J27: 32.13922 | K27: 32.13922 | L27: 0 | M27: 0 | N27: 0 | O27: 0 | P27: 0
A28: 4401000 | B28: RESIDENTIAL SALES | C28: 301109 | D28: UNBILLED REVENUE - RESIDENTIAL | E28: CA | F28: -1352 | G28: -1352 | H28: 0 | I28: 0 | J28: 0 | K28: 0 | L28: 0 | M28: 0 | N28: 0 | O28: 0 | P28: 0
A29: 4401000 | B29: RESIDENTIAL SALES | C29: 301109 | D29: UNBILLED REVENUE - RESIDENTIAL | E29: IDU | F29: -817 | G29: 0 | H29: 0 | I29: 0 | J29: 0 | K29: 0 | L29: 0 | M29: -817 | N29: 0 | O29: 0 | P29: 0
A30: 4401000 | B30: RESIDENTIAL SALES | C30: 301109 | D30: UNBILLED REVENUE - RESIDENTIAL | E30: OR | F30: 502 | G30: 0 | H30: 502 | I30: 0 | J30: 0 | K30: 0 | L30: 0 | M30: 0 | N30: 0 | O30: 0 | P30: 0
A31: 4401000 | B31: RESIDENTIAL SALES | C31: 301109 | D31: UNBILLED REVENUE - RESIDENTIAL | E31: UT | F31: 5678 | G31: 0 | H31: 0 | I31: 0 | J31: 0 | K31: 0 | L31: 5678 | M31: 0 | N31: 0 | O31: 0 | P31: 0
A32: 4401000 | B32: RESIDENTIAL SALES | C32: 301109 | D32: UNBILLED REVENUE - RESIDENTIAL | E32: WA | F32: -606 | G32: 0 | H32: 0 | I32: -606 | J32: 0 | K32: 0 | L32: 0 | M32: 0 | N32: 0 | O32: 0 | P32: 0
A33: 4401000 | B33: RESIDENTIAL SALES | C33: 301109 | D33: UNBILLED REVENUE - RESIDENTIAL | E33: WYP | F33: 523 | G33: 0 | H33: 0 | I33: 0 | J33: 523 | K33: 523 | L33: 0 | M33: 0 | N33: 0 | O33: 0 | P33: 0
A34: 4401000 | B34: RESIDENTIAL SALES | C34: 301109 | D34: UNBILLED REVENUE - RESIDENTIAL | E34: WYU | F34: 153 | G34: 0 | H34: 0 | I34: 0 | J34: 153 | K34: 0 | L34: 0 | M34: 0 | N34: 153 | O34: 0 | P34: 0
A35: 4401000 | B35: RESIDENTIAL SALES | C35: 301110 | D35: Residential - Income Tax Deferral Adjs | E35: CA | F35: 1319.3374 | G35: 1319.3374 | H35: 0 | I35: 0 | J35: 0 | K35: 0 | L35: 0 | M35: 0 | N35: 0 | O35: 0 | P35: 0
A36: 4401000 | B36: RESIDENTIAL SALES | C36: 301110 | D36: Residential - Income Tax Deferral Adjs | E36: IDU | F36: -206.72989 | G36: 0 | H36: 0 | I36: 0 | J36: 0 | K36: 0 | L36: 0 | M36: -206.72989 | N36: 0 | O36: 0 | P36: 0
A37: 4401000 | B37: RESIDENTIAL SALES | C37: 301110 | D37: Residential - Income Tax Deferral Adjs | E37: OR | F37: 8532.16704 | G37: 0 | H37: 8532.16704 | I37: 0 | J37: 0 | K37: 0 | L37: 0 | M37: 0 | N37: 0 | O37: 0 | P37: 0
A38: 4401000 | B38: RESIDENTIAL SALES | C38: 301110 | D38: Residential - Income Tax Deferral Adjs | E38: UT | F38: -8336.23693 | G38: 0 | H38: 0 | I38: 0 | J38: 0 | K38: 0 | L38: -8336.23693 | M38: 0 | N38: 0 | O38: 0 | P38: 0
A39: 4401000 | B39: RESIDENTIAL SALES | C39: 301110 | D39: Residential - Income Tax Deferral Adjs | E39: WA | F39: -101.81587 | G39: 0 | H39: 0 | I39: -101.81587 | J39: 0 | K39: 0 | L39: 0 | M39: 0 | N39: 0 | O39: 0 | P39: 0
A40: 4401000 | B40: RESIDENTIAL SALES | C40: 301110 | D40: Residential - Income Tax Deferral Adjs | E40: WYP | F40: -1119.23674 | G40: 0 | H40: 0 | I40: 0 | J40: -1119.23674 | K40: -1119.23674 | L40: 0 | M40: 0 | N40: 0 | O40: 0 | P40: 0
A41: 4401000 | B41: RESIDENTIAL SALES | C41: 301119 | D41: UNBILLED REVENUE - UNCOLLECTIBLE | E41: CA | F41: 7 | G41: 7 | H41: 0 | I41: 0 | J41: 0 | K41: 0 | L41: 0 | M41: 0 | N41: 0 | O41: 0 | P41: 0
A42: 4401000 | B42: RESIDENTIAL SALES | C42: 301119 | D42: UNBILLED REVENUE - UNCOLLECTIBLE | E42: IDU | F42: 6 | G42: 0 | H42: 0 | I42: 0 | J42: 0 | K42: 0 | L42: 0 | M42: 6 | N42: 0 | O42: 0 | P42: 0
A43: 4401000 | B43: RESIDENTIAL SALES | C43: 301119 | D43: UNBILLED REVENUE - UNCOLLECTIBLE | E43: OR | F43: 17 | G43: 0 | H43: 17 | I43: 0 | J43: 0 | K43: 0 | L43: 0 | M43: 0 | N43: 0 | O43: 0 | P43: 0
A44: 4401000 | B44: RESIDENTIAL SALES | C44: 301119 | D44: UNBILLED REVENUE - UNCOLLECTIBLE | E44: UT | F44: -37 | G44: 0 | H44: 0 | I44: 0 | J44: 0 | K44: 0 | L44: -37 | M44: 0 | N44: 0 | O44: 0 | P44: 0
A45: 4401000 | B45: RESIDENTIAL SALES | C45: 301119 | D45: UNBILLED REVENUE - UNCOLLECTIBLE | E45: WA | F45: 16 | G45: 0 | H45: 0 | I45: 16 | J45: 0 | K45: 0 | L45: 0 | M45: 0 | N45: 0 | O45: 0 | P45: 0
A46: 4401000 | B46: RESIDENTIAL SALES | C46: 301119 | D46: UNBILLED REVENUE - UNCOLLECTIBLE | E46: WYP | F46: 15 | G46: 0 | H46: 0 | I46: 0 | J46: 15 | K46: 15 | L46: 0 | M46: 0 | N46: 0 | O46: 0 | P46: 0
A47: 4401000 | B47: RESIDENTIAL SALES | C47: 301165 | D47: Solar Feed-In Revenue - Residential | E47: OTHER | F47: -3485.24403 | G47: 0 | H47: 0 | I47: 0 | J47: 0 | K47: 0 | L47: 0 | M47: 0 | N47: 0 | O47: 0 | P47: -3485.24403
A48: 4401000 | B48: RESIDENTIAL SALES | C48: 301170 | D48: DSM Revenue - Residential | E48: OTHER | F48: -31368.65235 | G48: 0 | H48: 0 | I48: 0 | J48: 0 | K48: 0 | L48: 0 | M48: 0 | N48: 0 | O48: 0 | P48: -31368.65235
A49: 4401000 | B49: RESIDENTIAL SALES | C49: 301171 | D49: DSM Revenue - Residential Cat 2 Gen Svc | E49: OTHER | F49: -48.4679 | G49: 0 | H49: 0 | I49: 0 | J49: 0 | K49: 0 | L49: 0 | M49: 0 | N49: 0 | O49: 0 | P49: -48.4679
A50: 4401000 | B50: RESIDENTIAL SALES | C50: 301180 | D50: Blue Sky Revenue Residential | E50: OTHER | F50: -2389.81351 | G50: 0 | H50: 0 | I50: 0 | J50: 0 | K50: 0 | L50: 0 | M50: 0 | N50: 0 | O50: 0 | P50: -2389.81351
A51: 4401000 Total | F51: =SUBTOTAL(9,F11:F50) -> -1808805.075 | G51: -46059.43388 | H51: -629272.4371 | I51: -144964.6492 | J51: -109358.4107 | K51: -96977.06253 | L51: -763826.6675 | M51: -78031.29896 | N51: -12381.34821 | O51: 0 | P51: -37292.17779
A52: 4421000 | B52: COMMERCIAL SALES | C52: 301200 | D52: COMMERCIAL SALES | E52: CA | F52: -35247.1128 | G52: -35247.1128 | H52: 0 | I52: 0 | J52: =K52+N52 -> 0 | K52: 0 | L52: 0 | M52: 0 | N52: 0 | O52: 0 | P52: 0
A53: 4421000 | B53: COMMERCIAL SALES | C53: 301200 | D53: COMMERCIAL SALES | E53: IDU | F53: -43418.00865 | G53: 0 | H53: 0 | I53: 0 | J53: 0 | K53: 0 | L53: 0 | M53: -43418.00865 | N53: 0 | O53: 0 | P53: 0
A54: 4421000 | B54: COMMERCIAL SALES | C54: 301200 | D54: COMMERCIAL SALES | E54: OR | F54: -486476.8738 | G54: 0 | H54: -486476.8738 | I54: 0 | J54: 0 | K54: 0 | L54: 0 | M54: 0 | N54: 0 | O54: 0 | P54: 0
A55: 4421000 | B55: COMMERCIAL SALES | C55: 301200 | D55: COMMERCIAL SALES | E55: UT | F55: -726297.1414 | G55: 0 | H55: 0 | I55: 0 | J55: 0 | K55: 0 | L55: -726297.1414 | M55: 0 | N55: 0 | O55: 0 | P55: 0
A56: 4421000 | B56: COMMERCIAL SALES | C56: 301200 | D56: COMMERCIAL SALES | E56: WA | F56: -129041.7616 | G56: 0 | H56: 0 | I56: -129041.7616 | J56: 0 | K56: 0 | L56: 0 | M56: 0 | N56: 0 | O56: 0 | P56: 0
A57: 4421000 | B57: COMMERCIAL SALES | C57: 301200 | D57: COMMERCIAL SALES | E57: WYP | F57: -105219.3193 | G57: 0 | H57: 0 | I57: 0 | J57: -105219.3193 | K57: -105219.3193 | L57: 0 | M57: 0 | N57: 0 | O57: 0 | P57: 0
A58: 4421000 | B58: COMMERCIAL SALES | C58: 301200 | D58: COMMERCIAL SALES | E58: WYU | F58: -10837.61226 | G58: 0 | H58: 0 | I58: 0 | J58: -10837.61226 | K58: 0 | L58: 0 | M58: 0 | N58: -10837.61226 | O58: 0 | P58: 0
A59: 4421000 | B59: COMMERCIAL SALES | C59: 301206 | D59: Commercial-Alt Revenue Program Adjs | E59: WA | F59: 967.03915 | G59: 0 | H59: 0 | I59: 967.03915 | J59: 0 | K59: 0 | L59: 0 | M59: 0 | N59: 0 | O59: 0 | P59: 0
A60: 4421000 | B60: COMMERCIAL SALES | C60: 301207 | D60: Commercial Revenue Acctg Adjustments | E60: CA | F60: 472.65472 | G60: 472.65472 | H60: 0 | I60: 0 | J60: 0 | K60: 0 | L60: 0 | M60: 0 | N60: 0 | O60: 0 | P60: 0
A61: 4421000 | B61: COMMERCIAL SALES | C61: 301207 | D61: Commercial Revenue Acctg Adjustments | E61: IDU | F61: 144.23505 | G61: 0 | H61: 0 | I61: 0 | J61: 0 | K61: 0 | L61: 0 | M61: 144.23505 | N61: 0 | O61: 0 | P61: 0
A62: 4421000 | B62: COMMERCIAL SALES | C62: 301207 | D62: Commercial Revenue Acctg Adjustments | E62: OR | F62: 1011.50839 | G62: 0 | H62: 1011.50839 | I62: 0 | J62: 0 | K62: 0 | L62: 0 | M62: 0 | N62: 0 | O62: 0 | P62: 0
A63: 4421000 | B63: COMMERCIAL SALES | C63: 301207 | D63: Commercial Revenue Acctg Adjustments | E63: UT | F63: 760.46318 | G63: 0 | H63: 0 | I63: 0 | J63: 0 | K63: 0 | L63: 760.46318 | M63: 0 | N63: 0 | O63: 0 | P63: 0
A64: 4421000 | B64: COMMERCIAL SALES | C64: 301207 | D64: Commercial Revenue Acctg Adjustments | E64: WA | F64: 9069.19053 | G64: 0 | H64: 0 | I64: 9069.19053 | J64: 0 | K64: 0 | L64: 0 | M64: 0 | N64: 0 | O64: 0 | P64: 0
A65: 4421000 | B65: COMMERCIAL SALES | C65: 301207 | D65: Commercial Revenue Acctg Adjustments | E65: WYP | F65: -237.79284 | G65: 0 | H65: 0 | I65: 0 | J65: -237.79284 | K65: -237.79284 | L65: 0 | M65: 0 | N65: 0 | O65: 0 | P65: 0
A66: 4421000 | B66: COMMERCIAL SALES | C66: 301208 | D66: Commercial Revenue Adj - Deferred NPC Me | E66: UT | F66: -2134.09404 | G66: 0 | H66: 0 | I66: 0 | J66: 0 | K66: 0 | L66: -2134.09404 | M66: 0 | N66: 0 | O66: 0 | P66: 0
A67: 4421000 | B67: COMMERCIAL SALES | C67: 301208 | D67: Commercial Revenue Adj - Deferred NPC Me | E67: WA | F67: -60.44492 | G67: 0 | H67: 0 | I67: -60.44492 | J67: 0 | K67: 0 | L67: 0 | M67: 0 | N67: 0 | O67: 0 | P67: 0
A68: 4421000 | B68: COMMERCIAL SALES | C68: 301208 | D68: Commercial Revenue Adj - Deferred NPC Me | E68: WYP | F68: 44.29117 | G68: 0 | H68: 0 | I68: 0 | J68: 44.29117 | K68: 44.29117 | L68: 0 | M68: 0 | N68: 0 | O68: 0 | P68: 0
A69: 4421000 | B69: COMMERCIAL SALES | C69: 301209 | D69: UNBILLED REVENUE - COMMERCIAL | E69: CA | F69: -31 | G69: -31 | H69: 0 | I69: 0 | J69: 0 | K69: 0 | L69: 0 | M69: 0 | N69: 0 | O69: 0 | P69: 0
A70: 4421000 | B70: COMMERCIAL SALES | C70: 301209 | D70: UNBILLED REVENUE - COMMERCIAL | E70: IDU | F70: -37 | G70: 0 | H70: 0 | I70: 0 | J70: 0 | K70: 0 | L70: 0 | M70: -37 | N70: 0 | O70: 0 | P70: 0
A71: 4421000 | B71: COMMERCIAL SALES | C71: 301209 | D71: UNBILLED REVENUE - COMMERCIAL | E71: OR | F71: 1789 | G71: 0 | H71: 1789 | I71: 0 | J71: 0 | K71: 0 | L71: 0 | M71: 0 | N71: 0 | O71: 0 | P71: 0
A72: 4421000 | B72: COMMERCIAL SALES | C72: 301209 | D72: UNBILLED REVENUE - COMMERCIAL | E72: UT | F72: -1795 | G72: 0 | H72: 0 | I72: 0 | J72: 0 | K72: 0 | L72: -1795 | M72: 0 | N72: 0 | O72: 0 | P72: 0
A73: 4421000 | B73: COMMERCIAL SALES | C73: 301209 | D73: UNBILLED REVENUE - COMMERCIAL | E73: WA | F73: -1694 | G73: 0 | H73: 0 | I73: -1694 | J73: 0 | K73: 0 | L73: 0 | M73: 0 | N73: 0 | O73: 0 | P73: 0
A74: 4421000 | B74: COMMERCIAL SALES | C74: 301209 | D74: UNBILLED REVENUE - COMMERCIAL | E74: WYP | F74: -2558 | G74: 0 | H74: 0 | I74: 0 | J74: -2558 | K74: -2558 | L74: 0 | M74: 0 | N74: 0 | O74: 0 | P74: 0
A75: 4421000 | B75: COMMERCIAL SALES | C75: 301209 | D75: UNBILLED REVENUE - COMMERCIAL | E75: WYU | F75: -64 | G75: 0 | H75: 0 | I75: 0 | J75: -64 | K75: 0 | L75: 0 | M75: 0 | N75: -64 | O75: 0 | P75: 0
A76: 4421000 | B76: COMMERCIAL SALES | C76: 301210 | D76: Commercial - Income Tax Deferral Adjs | E76: CA | F76: 824.94428 | G76: 824.94428 | H76: 0 | I76: 0 | J76: 0 | K76: 0 | L76: 0 | M76: 0 | N76: 0 | O76: 0 | P76: 0
A77: 4421000 | B77: COMMERCIAL SALES | C77: 301210 | D77: Commercial - Income Tax Deferral Adjs | E77: IDU | F77: -146.07875 | G77: 0 | H77: 0 | I77: 0 | J77: 0 | K77: 0 | L77: 0 | M77: -146.07875 | N77: 0 | O77: 0 | P77: 0
A78: 4421000 | B78: COMMERCIAL SALES | C78: 301210 | D78: Commercial - Income Tax Deferral Adjs | E78: OR | F78: 7860.48677 | G78: 0 | H78: 7860.48677 | I78: 0 | J78: 0 | K78: 0 | L78: 0 | M78: 0 | N78: 0 | O78: 0 | P78: 0
A79: 4421000 | B79: COMMERCIAL SALES | C79: 301210 | D79: Commercial - Income Tax Deferral Adjs | E79: UT | F79: -10849.19902 | G79: 0 | H79: 0 | I79: 0 | J79: 0 | K79: 0 | L79: -10849.19902 | M79: 0 | N79: 0 | O79: 0 | P79: 0
A80: 4421000 | B80: COMMERCIAL SALES | C80: 301210 | D80: Commercial - Income Tax Deferral Adjs | E80: WA | F80: -93.09133 | G80: 0 | H80: 0 | I80: -93.09133 | J80: 0 | K80: 0 | L80: 0 | M80: 0 | N80: 0 | O80: 0 | P80: 0
A81: 4421000 | B81: COMMERCIAL SALES | C81: 301210 | D81: Commercial - Income Tax Deferral Adjs | E81: WYP | F81: -1519.19717 | G81: 0 | H81: 0 | I81: 0 | J81: -1519.19717 | K81: -1519.19717 | L81: 0 | M81: 0 | N81: 0 | O81: 0 | P81: 0
A82: 4421000 | B82: COMMERCIAL SALES | C82: 301265 | D82: Solar Feed-In Revenue - Commercial | E82: OTHER | F82: -3708.3271 | G82: 0 | H82: 0 | I82: 0 | J82: 0 | K82: 0 | L82: 0 | M82: 0 | N82: 0 | O82: 0 | P82: -3708.3271
A83: 4421000 | B83: COMMERCIAL SALES | C83: 301270 | D83: DSM Revenue - Commercial | E83: OTHER | F83: -22163.66416 | G83: 0 | H83: 0 | I83: 0 | J83: 0 | K83: 0 | L83: 0 | M83: 0 | N83: 0 | O83: 0 | P83: -22163.66416
A84: 4421000 | B84: COMMERCIAL SALES | C84: 301271 | D84: DSM Revenue - Small Commercial | E84: OTHER | F84: -3863.96901 | G84: 0 | H84: 0 | I84: 0 | J84: 0 | K84: 0 | L84: 0 | M84: 0 | N84: 0 | O84: 0 | P84: -3863.96901
A85: 4421000 | B85: COMMERCIAL SALES | C85: 301272 | D85: DSM Revenue - Large Commercial | E85: OTHER | F85: -24.7588 | G85: 0 | H85: 0 | I85: 0 | J85: 0 | K85: 0 | L85: 0 | M85: 0 | N85: 0 | O85: 0 | P85: -24.7588
A86: 4421000 | B86: COMMERCIAL SALES | C86: 301280 | D86: Blue Sky Revenue - Commercial | E86: OTHER | F86: -1039.2332 | G86: 0 | H86: 0 | I86: 0 | J86: 0 | K86: 0 | L86: 0 | M86: 0 | N86: 0 | O86: 0 | P86: -1039.2332
A87: 4421000 Total | F87: =SUBTOTAL(9,F52:F86) -> -1565612.867 | G87: -33980.5138 | H87: -475815.8786 | I87: -120853.0682 | J87: -120391.6304 | K87: -109490.0182 | L87: -740314.9713 | M87: -43456.85235 | N87: -10901.61226 | O87: 0 | P87: -30799.95227
A88: 4422000 | B88: IND SLS/EXCL IRRIG | C88: 301300 | D88: INDUSTRIAL SALES (EXCLUDING IRRIGATION) | E88: CA | F88: -6696.14604 | G88: -6696.14604 | H88: 0 | I88: 0 | J88: =K88+N88 -> 0 | K88: 0 | L88: 0 | M88: 0 | N88: 0 | O88: 0 | P88: 0
A89: 4422000 | B89: IND SLS/EXCL IRRIG | C89: 301300 | D89: INDUSTRIAL SALES (EXCLUDING IRRIGATION) | E89: IDU | F89: -13359.49336 | G89: 0 | H89: 0 | I89: 0 | J89: 0 | K89: 0 | L89: 0 | M89: -13359.49336 | N89: 0 | O89: 0 | P89: 0
A90: 4422000 | B90: IND SLS/EXCL IRRIG | C90: 301300 | D90: INDUSTRIAL SALES (EXCLUDING IRRIGATION) | E90: OR | F90: -123491.6342 | G90: 0 | H90: -123491.6342 | I90: 0 | J90: 0 | K90: 0 | L90: 0 | M90: 0 | N90: 0 | O90: 0 | P90: 0
A91: 4422000 | B91: IND SLS/EXCL IRRIG | C91: 301300 | D91: INDUSTRIAL SALES (EXCLUDING IRRIGATION) | E91: UT | F91: -343532.3198 | G91: 0 | H91: 0 | I91: 0 | J91: 0 | K91: 0 | L91: -343532.3198 | M91: 0 | N91: 0 | O91: 0 | P91: 0
A92: 4422000 | B92: IND SLS/EXCL IRRIG | C92: 301300 | D92: INDUSTRIAL SALES (EXCLUDING IRRIGATION) | E92: WA | F92: -49538.4564 | G92: 0 | H92: 0 | I92: -49538.4564 | J92: 0 | K92: 0 | L92: 0 | M92: 0 | N92: 0 | O92: 0 | P92: 0
A93: 4422000 | B93: IND SLS/EXCL IRRIG | C93: 301300 | D93: INDUSTRIAL SALES (EXCLUDING IRRIGATION) | E93: WYP | F93: -338277.9501 | G93: 0 | H93: 0 | I93: 0 | J93: -338277.9501 | K93: -338277.9501 | L93: 0 | M93: 0 | N93: 0 | O93: 0 | P93: 0
A94: 4422000 | B94: IND SLS/EXCL IRRIG | C94: 301300 | D94: INDUSTRIAL SALES (EXCLUDING IRRIGATION) | E94: WYU | F94: -94279.2727 | G94: 0 | H94: 0 | I94: 0 | J94: -94279.2727 | K94: 0 | L94: 0 | M94: 0 | N94: -94279.2727 | O94: 0 | P94: 0
A95: 4422000 | B95: IND SLS/EXCL IRRIG | C95: 301304 | D95: SPECIAL CONTRACTS-SITUS | E95: IDU | F95: -95657.57035 | G95: 0 | H95: 0 | I95: 0 | J95: 0 | K95: 0 | L95: 0 | M95: -95657.57035 | N95: 0 | O95: 0 | P95: 0
A96: 4422000 | B96: IND SLS/EXCL IRRIG | C96: 301304 | D96: SPECIAL CONTRACTS-SITUS | E96: UT | F96: -143120.8999 | G96: 0 | H96: 0 | I96: 0 | J96: 0 | K96: 0 | L96: -143120.8999 | M96: 0 | N96: 0 | O96: 0 | P96: 0
A97: 4422000 | B97: IND SLS/EXCL IRRIG | C97: 301306 | D97: Industrial-Alt Revenue Program Adjs | E97: WA | F97: 1435.84899 | G97: 0 | H97: 0 | I97: 1435.84899 | J97: 0 | K97: 0 | L97: 0 | M97: 0 | N97: 0 | O97: 0 | P97: 0
A98: 4422000 | B98: IND SLS/EXCL IRRIG | C98: 301307 | D98: Industrial Revenue Acctg Adjustments | E98: CA | F98: 67.07006 | G98: 67.07006 | H98: 0 | I98: 0 | J98: 0 | K98: 0 | L98: 0 | M98: 0 | N98: 0 | O98: 0 | P98: 0
A99: 4422000 | B99: IND SLS/EXCL IRRIG | C99: 301307 | D99: Industrial Revenue Acctg Adjustments | E99: IDU | F99: -17.61407 | G99: 0 | H99: 0 | I99: 0 | J99: 0 | K99: 0 | L99: 0 | M99: -17.61407 | N99: 0 | O99: 0 | P99: 0
A100: 4422000 | B100: IND SLS/EXCL IRRIG | C100: 301307 | D100: Industrial Revenue Acctg Adjustments | E100: OR | F100: 1414.05504 | G100: 0 | H100: 1414.05504 | I100: 0 | J100: 0 | K100: 0 | L100: 0 | M100: 0 | N100: 0 | O100: 0 | P100: 0
A101: 4422000 | B101: IND SLS/EXCL IRRIG | C101: 301307 | D101: Industrial Revenue Acctg Adjustments | E101: UT | F101: 141.32593 | G101: 0 | H101: 0 | I101: 0 | J101: 0 | K101: 0 | L101: 141.32593 | M101: 0 | N101: 0 | O101: 0 | P101: 0
A102: 4422000 | B102: IND SLS/EXCL IRRIG | C102: 301307 | D102: Industrial Revenue Acctg Adjustments | E102: WA | F102: 3523.3732 | G102: 0 | H102: 0 | I102: 3523.3732 | J102: 0 | K102: 0 | L102: 0 | M102: 0 | N102: 0 | O102: 0 | P102: 0
A103: 4422000 | B103: IND SLS/EXCL IRRIG | C103: 301307 | D103: Industrial Revenue Acctg Adjustments | E103: WYP | F103: -1059.97051 | G103: 0 | H103: 0 | I103: 0 | J103: -1059.97051 | K103: -1059.97051 | L103: 0 | M103: 0 | N103: 0 | O103: 0 | P103: 0
A104: 4422000 | B104: IND SLS/EXCL IRRIG | C104: 301308 | D104: Industrial Revenue Adj - Deferred NPC Me | E104: UT | F104: -1910.68703 | G104: 0 | H104: 0 | I104: 0 | J104: 0 | K104: 0 | L104: -1910.68703 | M104: 0 | N104: 0 | O104: 0 | P104: 0
A105: 4422000 | B105: IND SLS/EXCL IRRIG | C105: 301308 | D105: Industrial Revenue Adj - Deferred NPC Me | E105: WA | F105: -29.18056 | G105: 0 | H105: 0 | I105: -29.18056 | J105: 0 | K105: 0 | L105: 0 | M105: 0 | N105: 0 | O105: 0 | P105: 0
A106: 4422000 | B106: IND SLS/EXCL IRRIG | C106: 301308 | D106: Industrial Revenue Adj - Deferred NPC Me | E106: WYP | F106: 217.15728 | G106: 0 | H106: 0 | I106: 0 | J106: 217.15728 | K106: 217.15728 | L106: 0 | M106: 0 | N106: 0 | O106: 0 | P106: 0
A107: 4422000 | B107: IND SLS/EXCL IRRIG | C107: 301309 | D107: UNBILLED REVENUE - INDUSTRIAL | E107: CA | F107: 68 | G107: 68 | H107: 0 | I107: 0 | J107: 0 | K107: 0 | L107: 0 | M107: 0 | N107: 0 | O107: 0 | P107: 0
A108: 4422000 | B108: IND SLS/EXCL IRRIG | C108: 301309 | D108: UNBILLED REVENUE - INDUSTRIAL | E108: IDU | F108: 212 | G108: 0 | H108: 0 | I108: 0 | J108: 0 | K108: 0 | L108: 0 | M108: 212 | N108: 0 | O108: 0 | P108: 0
A109: 4422000 | B109: IND SLS/EXCL IRRIG | C109: 301309 | D109: UNBILLED REVENUE - INDUSTRIAL | E109: OR | F109: 2873 | G109: 0 | H109: 2873 | I109: 0 | J109: 0 | K109: 0 | L109: 0 | M109: 0 | N109: 0 | O109: 0 | P109: 0
A110: 4422000 | B110: IND SLS/EXCL IRRIG | C110: 301309 | D110: UNBILLED REVENUE - INDUSTRIAL | E110: UT | F110: 19800 | G110: 0 | H110: 0 | I110: 0 | J110: 0 | K110: 0 | L110: 19800 | M110: 0 | N110: 0 | O110: 0 | P110: 0
A111: 4422000 | B111: IND SLS/EXCL IRRIG | C111: 301309 | D111: UNBILLED REVENUE - INDUSTRIAL | E111: WA | F111: -301 | G111: 0 | H111: 0 | I111: -301 | J111: 0 | K111: 0 | L111: 0 | M111: 0 | N111: 0 | O111: 0 | P111: 0
A112: 4422000 | B112: IND SLS/EXCL IRRIG | C112: 301309 | D112: UNBILLED REVENUE - INDUSTRIAL | E112: WYP | F112: 798 | G112: 0 | H112: 0 | I112: 0 | J112: 798 | K112: 798 | L112: 0 | M112: 0 | N112: 0 | O112: 0 | P112: 0
A113: 4422000 | B113: IND SLS/EXCL IRRIG | C113: 301309 | D113: UNBILLED REVENUE - INDUSTRIAL | E113: WYU | F113: -60 | G113: 0 | H113: 0 | I113: 0 | J113: -60 | K113: 0 | L113: 0 | M113: 0 | N113: -60 | O113: 0 | P113: 0
A114: 4422000 | B114: IND SLS/EXCL IRRIG | C114: 301310 | D114: Industrial - Income Tax Deferral Adjs | E114: CA | F114: 203.45868 | G114: 203.45868 | H114: 0 | I114: 0 | J114: 0 | K114: 0 | L114: 0 | M114: 0 | N114: 0 | O114: 0 | P114: 0
A115: 4422000 | B115: IND SLS/EXCL IRRIG | C115: 301310 | D115: Industrial - Income Tax Deferral Adjs | E115: IDU | F115: -523.38755 | G115: 0 | H115: 0 | I115: 0 | J115: 0 | K115: 0 | L115: 0 | M115: -523.38755 | N115: 0 | O115: 0 | P115: 0
A116: 4422000 | B116: IND SLS/EXCL IRRIG | C116: 301310 | D116: Industrial - Income Tax Deferral Adjs | E116: OR | F116: 2756.98736 | G116: 0 | H116: 2756.98736 | I116: 0 | J116: 0 | K116: 0 | L116: 0 | M116: 0 | N116: 0 | O116: 0 | P116: 0
A117: 4422000 | B117: IND SLS/EXCL IRRIG | C117: 301310 | D117: Industrial - Income Tax Deferral Adjs | E117: UT | F117: -10025.75757 | G117: 0 | H117: 0 | I117: 0 | J117: 0 | K117: 0 | L117: -10025.75757 | M117: 0 | N117: 0 | O117: 0 | P117: 0
A118: 4422000 | B118: IND SLS/EXCL IRRIG | C118: 301310 | D118: Industrial - Income Tax Deferral Adjs | E118: WA | F118: -48.7751 | G118: 0 | H118: 0 | I118: -48.7751 | J118: 0 | K118: 0 | L118: 0 | M118: 0 | N118: 0 | O118: 0 | P118: 0
A119: 4422000 | B119: IND SLS/EXCL IRRIG | C119: 301310 | D119: Industrial - Income Tax Deferral Adjs | E119: WYP | F119: -7427.15653 | G119: 0 | H119: 0 | I119: 0 | J119: -7427.15653 | K119: -7427.15653 | L119: 0 | M119: 0 | N119: 0 | O119: 0 | P119: 0
A120: 4422000 | B120: IND SLS/EXCL IRRIG | C120: 301365 | D120: Solar Feed-In Revenue - Industrial | E120: OTHER | F120: -2630.59588 | G120: 0 | H120: 0 | I120: 0 | J120: 0 | K120: 0 | L120: 0 | M120: 0 | N120: 0 | O120: 0 | P120: -2630.59588
A121: 4422000 | B121: IND SLS/EXCL IRRIG | C121: 301370 | D121: DSM Revenue - Industrial | E121: OTHER | F121: -6475.013 | G121: 0 | H121: 0 | I121: 0 | J121: 0 | K121: 0 | L121: 0 | M121: 0 | N121: 0 | O121: 0 | P121: -6475.013
A122: 4422000 | B122: IND SLS/EXCL IRRIG | C122: 301371 | D122: DSM Revenue - Small Industrial | E122: OTHER | F122: -1008.28057 | G122: 0 | H122: 0 | I122: 0 | J122: 0 | K122: 0 | L122: 0 | M122: 0 | N122: 0 | O122: 0 | P122: -1008.28057
A123: 4422000 | B123: IND SLS/EXCL IRRIG | C123: 301372 | D123: DSM Revenue - Large Industrial | E123: OTHER | F123: -871.04336 | G123: 0 | H123: 0 | I123: 0 | J123: 0 | K123: 0 | L123: 0 | M123: 0 | N123: 0 | O123: 0 | P123: -871.04336
A124: 4422000 | B124: IND SLS/EXCL IRRIG | C124: 301380 | D124: Blue Sky Revenue - Industrial | E124: OTHER | F124: -514.77634 | G124: 0 | H124: 0 | I124: 0 | J124: 0 | K124: 0 | L124: 0 | M124: 0 | N124: 0 | O124: 0 | P124: -514.77634
A125: 4422000 Total | F125: =SUBTOTAL(9,F88:F124) -> -1207346.704 | G125: -6357.6173 | H125: -116447.5918 | I125: -44958.18987 | J125: -440089.1926 | K125: -345749.9199 | L125: -478648.3384 | M125: -109346.0653 | N125: -94339.2727 | O125: 0 | P125: -11499.70915
A126: 4423000 | B126: INDUST SALES-IRRIG | C126: 301450 | D126: INDUSTRIAL SALES - IRRIGATION | E126: CA | F126: -12869.94296 | G126: -12869.94296 | H126: 0 | I126: 0 | J126: =K126+N126 -> 0 | K126: 0 | L126: 0 | M126: 0 | N126: 0 | O126: 0 | P126: 0
A127: 4423000 | B127: INDUST SALES-IRRIG | C127: 301450 | D127: INDUSTRIAL SALES - IRRIGATION | E127: IDU | F127: -53649.3628 | G127: 0 | H127: 0 | I127: 0 | J127: 0 | K127: 0 | L127: 0 | M127: -53649.3628 | N127: 0 | O127: 0 | P127: 0
A128: 4423000 | B128: INDUST SALES-IRRIG | C128: 301450 | D128: INDUSTRIAL SALES - IRRIGATION | E128: OR | F128: -30337.09542 | G128: 0 | H128: -30337.09542 | I128: 0 | J128: 0 | K128: 0 | L128: 0 | M128: 0 | N128: 0 | O128: 0 | P128: 0
A129: 4423000 | B129: INDUST SALES-IRRIG | C129: 301450 | D129: INDUSTRIAL SALES - IRRIGATION | E129: UT | F129: -17697.01714 | G129: 0 | H129: 0 | I129: 0 | J129: 0 | K129: 0 | L129: -17697.01714 | M129: 0 | N129: 0 | O129: 0 | P129: 0
A130: 4423000 | B130: INDUST SALES-IRRIG | C130: 301450 | D130: INDUSTRIAL SALES - IRRIGATION | E130: WA | F130: -14965.50572 | G130: 0 | H130: 0 | I130: -14965.50572 | J130: 0 | K130: 0 | L130: 0 | M130: 0 | N130: 0 | O130: 0 | P130: 0
A131: 4423000 | B131: INDUST SALES-IRRIG | C131: 301450 | D131: INDUSTRIAL SALES - IRRIGATION | E131: WYP | F131: -1612.04131 | G131: 0 | H131: 0 | I131: 0 | J131: -1612.04131 | K131: -1612.04131 | L131: 0 | M131: 0 | N131: 0 | O131: 0 | P131: 0
A132: 4423000 | B132: INDUST SALES-IRRIG | C132: 301450 | D132: INDUSTRIAL SALES - IRRIGATION | E132: WYU | F132: -487.06908 | G132: 0 | H132: 0 | I132: 0 | J132: -487.06908 | K132: 0 | L132: 0 | M132: 0 | N132: -487.06908 | O132: 0 | P132: 0
A133: 4423000 | B133: INDUST SALES-IRRIG | C133: 301455 | D133: Irrigation - Income Tax Deferral Adjs | E133: CA | F133: 299.98102 | G133: 299.98102 | H133: 0 | I133: 0 | J133: 0 | K133: 0 | L133: 0 | M133: 0 | N133: 0 | O133: 0 | P133: 0
A134: 4423000 | B134: INDUST SALES-IRRIG | C134: 301455 | D134: Irrigation - Income Tax Deferral Adjs | E134: IDU | F134: -160.24176 | G134: 0 | H134: 0 | I134: 0 | J134: 0 | K134: 0 | L134: 0 | M134: -160.24176 | N134: 0 | O134: 0 | P134: 0
A135: 4423000 | B135: INDUST SALES-IRRIG | C135: 301455 | D135: Irrigation - Income Tax Deferral Adjs | E135: OR | F135: 456.5729 | G135: 0 | H135: 456.5729 | I135: 0 | J135: 0 | K135: 0 | L135: 0 | M135: 0 | N135: 0 | O135: 0 | P135: 0
A136: 4423000 | B136: INDUST SALES-IRRIG | C136: 301455 | D136: Irrigation - Income Tax Deferral Adjs | E136: UT | F136: -276.40578 | G136: 0 | H136: 0 | I136: 0 | J136: 0 | K136: 0 | L136: -276.40578 | M136: 0 | N136: 0 | O136: 0 | P136: 0
A137: 4423000 | B137: INDUST SALES-IRRIG | C137: 301455 | D137: Irrigation - Income Tax Deferral Adjs | E137: WA | F137: -8.52143 | G137: 0 | H137: 0 | I137: -8.52143 | J137: 0 | K137: 0 | L137: 0 | M137: 0 | N137: 0 | O137: 0 | P137: 0
A138: 4423000 | B138: INDUST SALES-IRRIG | C138: 301455 | D138: Irrigation - Income Tax Deferral Adjs | E138: WYP | F138: -28.07088 | G138: 0 | H138: 0 | I138: 0 | J138: -28.07088 | K138: -28.07088 | L138: 0 | M138: 0 | N138: 0 | O138: 0 | P138: 0
A139: 4423000 | B139: INDUST SALES-IRRIG | C139: 301456 | D139: Irrigation-Alt Revenue Program Adjs | E139: WA | F139: 657.52882 | G139: 0 | H139: 0 | I139: 657.52882 | J139: 0 | K139: 0 | L139: 0 | M139: 0 | N139: 0 | O139: 0 | P139: 0
A140: 4423000 | B140: INDUST SALES-IRRIG | C140: 301457 | D140: Irrigation Revenue Acctg Adjustments | E140: CA | F140: 254.05072 | G140: 254.05072 | H140: 0 | I140: 0 | J140: 0 | K140: 0 | L140: 0 | M140: 0 | N140: 0 | O140: 0 | P140: 0
A141: 4423000 | B141: INDUST SALES-IRRIG | C141: 301457 | D141: Irrigation Revenue Acctg Adjustments | E141: IDU | F141: 178.91519 | G141: 0 | H141: 0 | I141: 0 | J141: 0 | K141: 0 | L141: 0 | M141: 178.91519 | N141: 0 | O141: 0 | P141: 0
A142: 4423000 | B142: INDUST SALES-IRRIG | C142: 301457 | D142: Irrigation Revenue Acctg Adjustments | E142: OR | F142: 112.63961 | G142: 0 | H142: 112.63961 | I142: 0 | J142: 0 | K142: 0 | L142: 0 | M142: 0 | N142: 0 | O142: 0 | P142: 0
A143: 4423000 | B143: INDUST SALES-IRRIG | C143: 301457 | D143: Irrigation Revenue Acctg Adjustments | E143: UT | F143: 6.89175 | G143: 0 | H143: 0 | I143: 0 | J143: 0 | K143: 0 | L143: 6.89175 | M143: 0 | N143: 0 | O143: 0 | P143: 0
A144: 4423000 | B144: INDUST SALES-IRRIG | C144: 301457 | D144: Irrigation Revenue Acctg Adjustments | E144: WA | F144: 1087.00144 | G144: 0 | H144: 0 | I144: 1087.00144 | J144: 0 | K144: 0 | L144: 0 | M144: 0 | N144: 0 | O144: 0 | P144: 0
A145: 4423000 | B145: INDUST SALES-IRRIG | C145: 301457 | D145: Irrigation Revenue Acctg Adjustments | E145: WYP | F145: -1.59918 | G145: 0 | H145: 0 | I145: 0 | J145: -1.59918 | K145: -1.59918 | L145: 0 | M145: 0 | N145: 0 | O145: 0 | P145: 0
A146: 4423000 | B146: INDUST SALES-IRRIG | C146: 301458 | D146: Irrigation Revenue Adj - Deferred NPC Me | E146: UT | F146: -60.32292 | G146: 0 | H146: 0 | I146: 0 | J146: 0 | K146: 0 | L146: -60.32292 | M146: 0 | N146: 0 | O146: 0 | P146: 0
A147: 4423000 | B147: INDUST SALES-IRRIG | C147: 301458 | D147: Irrigation Revenue Adj - Deferred NPC Me | E147: WA | F147: -6.12075 | G147: 0 | H147: 0 | I147: -6.12075 | J147: 0 | K147: 0 | L147: 0 | M147: 0 | N147: 0 | O147: 0 | P147: 0
A148: 4423000 | B148: INDUST SALES-IRRIG | C148: 301458 | D148: Irrigation Revenue Adj - Deferred NPC Me | E148: WYP | F148: 0.82092 | G148: 0 | H148: 0 | I148: 0 | J148: 0.82092 | K148: 0.82092 | L148: 0 | M148: 0 | N148: 0 | O148: 0 | P148: 0
A149: 4423000 | B149: INDUST SALES-IRRIG | C149: 301459 | D149: UNBILLED REVENUE - IRRIGATION/FARM | E149: CA | F149: -396 | G149: -396 | H149: 0 | I149: 0 | J149: 0 | K149: 0 | L149: 0 | M149: 0 | N149: 0 | O149: 0 | P149: 0
A150: 4423000 | B150: INDUST SALES-IRRIG | C150: 301459 | D150: UNBILLED REVENUE - IRRIGATION/FARM | E150: IDU | F150: 1265 | G150: 0 | H150: 0 | I150: 0 | J150: 0 | K150: 0 | L150: 0 | M150: 1265 | N150: 0 | O150: 0 | P150: 0
A151: 4423000 | B151: INDUST SALES-IRRIG | C151: 301459 | D151: UNBILLED REVENUE - IRRIGATION/FARM | E151: OR | F151: -5262 | G151: 0 | H151: -5262 | I151: 0 | J151: 0 | K151: 0 | L151: 0 | M151: 0 | N151: 0 | O151: 0 | P151: 0
A152: 4423000 | B152: INDUST SALES-IRRIG | C152: 301459 | D152: UNBILLED REVENUE - IRRIGATION/FARM | E152: UT | F152: -494 | G152: 0 | H152: 0 | I152: 0 | J152: 0 | K152: 0 | L152: -494 | M152: 0 | N152: 0 | O152: 0 | P152: 0
A153: 4423000 | B153: INDUST SALES-IRRIG | C153: 301459 | D153: UNBILLED REVENUE - IRRIGATION/FARM | E153: WA | F153: -1173 | G153: 0 | H153: 0 | I153: -1173 | J153: 0 | K153: 0 | L153: 0 | M153: 0 | N153: 0 | O153: 0 | P153: 0
A154: 4423000 | B154: INDUST SALES-IRRIG | C154: 301459 | D154: UNBILLED REVENUE - IRRIGATION/FARM | E154: WYP | F154: 11 | G154: 0 | H154: 0 | I154: 0 | J154: 11 | K154: 11 | L154: 0 | M154: 0 | N154: 0 | O154: 0 | P154: 0
A155: 4423000 | B155: INDUST SALES-IRRIG | C155: 301459 | D155: UNBILLED REVENUE - IRRIGATION/FARM | E155: WYU | F155: -29 | G155: 0 | H155: 0 | I155: 0 | J155: -29 | K155: 0 | L155: 0 | M155: 0 | N155: -29 | O155: 0 | P155: 0
A156: 4423000 | B156: INDUST SALES-IRRIG | C156: 301461 | D156: Unbilled Revenue-Irrigation Demand Charg | E156: CA | F156: -37 | G156: -37 | H156: 0 | I156: 0 | J156: 0 | K156: 0 | L156: 0 | M156: 0 | N156: 0 | O156: 0 | P156: 0
A157: 4423000 | B157: INDUST SALES-IRRIG | C157: 301461 | D157: Unbilled Revenue-Irrigation Demand Charg | E157: OR | F157: 8 | G157: 0 | H157: 8 | I157: 0 | J157: 0 | K157: 0 | L157: 0 | M157: 0 | N157: 0 | O157: 0 | P157: 0
A158: 4423000 | B158: INDUST SALES-IRRIG | C158: 301461 | D158: Unbilled Revenue-Irrigation Demand Charg | E158: WA | F158: -122 | G158: 0 | H158: 0 | I158: -122 | J158: 0 | K158: 0 | L158: 0 | M158: 0 | N158: 0 | O158: 0 | P158: 0
A159: 4423000 | B159: INDUST SALES-IRRIG | C159: 301465 | D159: Solar Feed-In Revenue - Irrigation | E159: OTHER | F159: -130.49842 | G159: 0 | H159: 0 | I159: 0 | J159: 0 | K159: 0 | L159: 0 | M159: 0 | N159: 0 | O159: 0 | P159: -130.49842
A160: 4423000 | B160: INDUST SALES-IRRIG | C160: 301470 | D160: DSM Revenue - Irrigation | E160: OTHER | F160: -3166.93112 | G160: 0 | H160: 0 | I160: 0 | J160: 0 | K160: 0 | L160: 0 | M160: 0 | N160: 0 | O160: 0 | P160: -3166.93112
A161: 4423000 | B161: INDUST SALES-IRRIG | C161: 301480 | D161: Blue Sky Revenue - Irrigation | E161: OTHER | F161: -0.67377 | G161: 0 | H161: 0 | I161: 0 | J161: 0 | K161: 0 | L161: 0 | M161: 0 | N161: 0 | O161: 0 | P161: -0.67377
A162: 4423000 Total | F162: =SUBTOTAL(9,F126:F161) -> -138632.0181 | G162: -12748.91122 | H162: -35021.88291 | I162: -14530.61764 | J162: -2145.95953 | K162: -1629.89045 | L162: -18520.85409 | M162: -52365.68937 | N162: -516.06908 | O162: 0 | P162: -3298.10331
A163: 4441000 | B163: PUB ST/HWY LIGHT | C163: 301600 | D163: PUBLIC STREET AND HIGHWAY LIGHTING | E163: CA | F163: -418.1195 | G163: -418.1195 | H163: 0 | I163: 0 | J163: =K163+N163 -> 0 | K163: 0 | L163: 0 | M163: 0 | N163: 0 | O163: 0 | P163: 0
A164: 4441000 | B164: PUB ST/HWY LIGHT | C164: 301600 | D164: PUBLIC STREET AND HIGHWAY LIGHTING | E164: IDU | F164: -514.17199 | G164: 0 | H164: 0 | I164: 0 | J164: 0 | K164: 0 | L164: 0 | M164: -514.17199 | N164: 0 | O164: 0 | P164: 0
A165: 4441000 | B165: PUB ST/HWY LIGHT | C165: 301600 | D165: PUBLIC STREET AND HIGHWAY LIGHTING | E165: OR | F165: -6336.06366 | G165: 0 | H165: -6336.06366 | I165: 0 | J165: 0 | K165: 0 | L165: 0 | M165: 0 | N165: 0 | O165: 0 | P165: 0
A166: 4441000 | B166: PUB ST/HWY LIGHT | C166: 301600 | D166: PUBLIC STREET AND HIGHWAY LIGHTING | E166: UT | F166: -7839.99009 | G166: 0 | H166: 0 | I166: 0 | J166: 0 | K166: 0 | L166: -7839.99009 | M166: 0 | N166: 0 | O166: 0 | P166: 0
A167: 4441000 | B167: PUB ST/HWY LIGHT | C167: 301600 | D167: PUBLIC STREET AND HIGHWAY LIGHTING | E167: WA | F167: -1279.68482 | G167: 0 | H167: 0 | I167: -1279.68482 | J167: 0 | K167: 0 | L167: 0 | M167: 0 | N167: 0 | O167: 0 | P167: 0
A168: 4441000 | B168: PUB ST/HWY LIGHT | C168: 301600 | D168: PUBLIC STREET AND HIGHWAY LIGHTING | E168: WYP | F168: -1598.99532 | G168: 0 | H168: 0 | I168: 0 | J168: -1598.99532 | K168: -1598.99532 | L168: 0 | M168: 0 | N168: 0 | O168: 0 | P168: 0
A169: 4441000 | B169: PUB ST/HWY LIGHT | C169: 301600 | D169: PUBLIC STREET AND HIGHWAY LIGHTING | E169: WYU | F169: -340.39439 | G169: 0 | H169: 0 | I169: 0 | J169: -340.39439 | K169: 0 | L169: 0 | M169: 0 | N169: -340.39439 | O169: 0 | P169: 0
A170: 4441000 | B170: PUB ST/HWY LIGHT | C170: 301607 | D170: Public St/Hwy Lights Rev Acctg Adjustmen | E170: CA | F170: 7.83831 | G170: 7.83831 | H170: 0 | I170: 0 | J170: 0 | K170: 0 | L170: 0 | M170: 0 | N170: 0 | O170: 0 | P170: 0
A171: 4441000 | B171: PUB ST/HWY LIGHT | C171: 301607 | D171: Public St/Hwy Lights Rev Acctg Adjustmen | E171: IDU | F171: 2.70961 | G171: 0 | H171: 0 | I171: 0 | J171: 0 | K171: 0 | L171: 0 | M171: 2.70961 | N171: 0 | O171: 0 | P171: 0
A172: 4441000 | B172: PUB ST/HWY LIGHT | C172: 301607 | D172: Public St/Hwy Lights Rev Acctg Adjustmen | E172: OR | F172: 15.93256 | G172: 0 | H172: 15.93256 | I172: 0 | J172: 0 | K172: 0 | L172: 0 | M172: 0 | N172: 0 | O172: 0 | P172: 0
A173: 4441000 | B173: PUB ST/HWY LIGHT | C173: 301607 | D173: Public St/Hwy Lights Rev Acctg Adjustmen | E173: UT | F173: 19.27503 | G173: 0 | H173: 0 | I173: 0 | J173: 0 | K173: 0 | L173: 19.27503 | M173: 0 | N173: 0 | O173: 0 | P173: 0
A174: 4441000 | B174: PUB ST/HWY LIGHT | C174: 301607 | D174: Public St/Hwy Lights Rev Acctg Adjustmen | E174: WA | F174: 57.71393 | G174: 0 | H174: 0 | I174: 57.71393 | J174: 0 | K174: 0 | L174: 0 | M174: 0 | N174: 0 | O174: 0 | P174: 0
A175: 4441000 | B175: PUB ST/HWY LIGHT | C175: 301607 | D175: Public St/Hwy Lights Rev Acctg Adjustmen | E175: WYU | F175: -3.68005 | G175: 0 | H175: 0 | I175: 0 | J175: -3.68005 | K175: 0 | L175: 0 | M175: 0 | N175: -3.68005 | O175: 0 | P175: 0
A176: 4441000 | B176: PUB ST/HWY LIGHT | C176: 301608 | D176: Public St/Hwy Lgt Rev Adj-Def NPC Mech | E176: UT | F176: -16.66127 | G176: 0 | H176: 0 | I176: 0 | J176: 0 | K176: 0 | L176: -16.66127 | M176: 0 | N176: 0 | O176: 0 | P176: 0
A177: 4441000 | B177: PUB ST/HWY LIGHT | C177: 301608 | D177: Public St/Hwy Lgt Rev Adj-Def NPC Mech | E177: WYP | F177: 0.39558 | G177: 0 | H177: 0 | I177: 0 | J177: 0.39558 | K177: 0.39558 | L177: 0 | M177: 0 | N177: 0 | O177: 0 | P177: 0
A178: 4441000 | B178: PUB ST/HWY LIGHT | C178: 301609 | D178: UNBILLED REV - PUBLIC ST/HWY LIGHTING | E178: CA | F178: 52 | G178: 52 | H178: 0 | I178: 0 | J178: 0 | K178: 0 | L178: 0 | M178: 0 | N178: 0 | O178: 0 | P178: 0
A179: 4441000 | B179: PUB ST/HWY LIGHT | C179: 301609 | D179: UNBILLED REV - PUBLIC ST/HWY LIGHTING | E179: IDU | F179: -10 | G179: 0 | H179: 0 | I179: 0 | J179: 0 | K179: 0 | L179: 0 | M179: -10 | N179: 0 | O179: 0 | P179: 0
A180: 4441000 | B180: PUB ST/HWY LIGHT | C180: 301609 | D180: UNBILLED REV - PUBLIC ST/HWY LIGHTING | E180: OR | F180: 291 | G180: 0 | H180: 291 | I180: 0 | J180: 0 | K180: 0 | L180: 0 | M180: 0 | N180: 0 | O180: 0 | P180: 0
A181: 4441000 | B181: PUB ST/HWY LIGHT | C181: 301609 | D181: UNBILLED REV - PUBLIC ST/HWY LIGHTING | E181: UT | F181: -104 | G181: 0 | H181: 0 | I181: 0 | J181: 0 | K181: 0 | L181: -104 | M181: 0 | N181: 0 | O181: 0 | P181: 0
A182: 4441000 | B182: PUB ST/HWY LIGHT | C182: 301609 | D182: UNBILLED REV - PUBLIC ST/HWY LIGHTING | E182: WA | F182: -20 | G182: 0 | H182: 0 | I182: -20 | J182: 0 | K182: 0 | L182: 0 | M182: 0 | N182: 0 | O182: 0 | P182: 0
A183: 4441000 | B183: PUB ST/HWY LIGHT | C183: 301609 | D183: UNBILLED REV - PUBLIC ST/HWY LIGHTING | E183: WYP | F183: 40 | G183: 0 | H183: 0 | I183: 0 | J183: 40 | K183: 40 | L183: 0 | M183: 0 | N183: 0 | O183: 0 | P183: 0
A184: 4441000 | B184: PUB ST/HWY LIGHT | C184: 301609 | D184: UNBILLED REV - PUBLIC ST/HWY LIGHTING | E184: WYU | F184: -6 | G184: 0 | H184: 0 | I184: 0 | J184: -6 | K184: 0 | L184: 0 | M184: 0 | N184: -6 | O184: 0 | P184: 0
A185: 4441000 | B185: PUB ST/HWY LIGHT | C185: 301610 | D185: St&Hwy Light - Income Tax Deferral Adjs | E185: CA | F185: 6.03495 | G185: 6.03495 | H185: 0 | I185: 0 | J185: 0 | K185: 0 | L185: 0 | M185: 0 | N185: 0 | O185: 0 | P185: 0
A186: 4441000 | B186: PUB ST/HWY LIGHT | C186: 301610 | D186: St&Hwy Light - Income Tax Deferral Adjs | E186: IDU | F186: -0.84104 | G186: 0 | H186: 0 | I186: 0 | J186: 0 | K186: 0 | L186: 0 | M186: -0.84104 | N186: 0 | O186: 0 | P186: 0
A187: 4441000 | B187: PUB ST/HWY LIGHT | C187: 301610 | D187: St&Hwy Light - Income Tax Deferral Adjs | E187: OR | F187: 59.82398 | G187: 0 | H187: 59.82398 | I187: 0 | J187: 0 | K187: 0 | L187: 0 | M187: 0 | N187: 0 | O187: 0 | P187: 0
A188: 4441000 | B188: PUB ST/HWY LIGHT | C188: 301610 | D188: St&Hwy Light - Income Tax Deferral Adjs | E188: UT | F188: -91.52431 | G188: 0 | H188: 0 | I188: 0 | J188: 0 | K188: 0 | L188: -91.52431 | M188: 0 | N188: 0 | O188: 0 | P188: 0
A189: 4441000 | B189: PUB ST/HWY LIGHT | C189: 301610 | D189: St&Hwy Light - Income Tax Deferral Adjs | E189: WA | F189: -0.70601 | G189: 0 | H189: 0 | I189: -0.70601 | J189: 0 | K189: 0 | L189: 0 | M189: 0 | N189: 0 | O189: 0 | P189: 0
A190: 4441000 | B190: PUB ST/HWY LIGHT | C190: 301610 | D190: St&Hwy Light - Income Tax Deferral Adjs | E190: WYP | F190: -13.50324 | G190: 0 | H190: 0 | I190: 0 | J190: -13.50324 | K190: -13.50324 | L190: 0 | M190: 0 | N190: 0 | O190: 0 | P190: 0
A191: 4441000 | B191: PUB ST/HWY LIGHT | C191: 301665 | D191: Solar Feed-In Revenue - St/Hwy Lighting | E191: OTHER | F191: -26.61246 | G191: 0 | H191: 0 | I191: 0 | J191: 0 | K191: 0 | L191: 0 | M191: 0 | N191: 0 | O191: 0 | P191: -26.61246
A192: 4441000 | B192: PUB ST/HWY LIGHT | C192: 301670 | D192: DSM Revenue - Street/Hwy Lighting | E192: OTHER | F192: -336.47671 | G192: 0 | H192: 0 | I192: 0 | J192: 0 | K192: 0 | L192: 0 | M192: 0 | N192: 0 | O192: 0 | P192: -336.47671
A193: 4441000 Total | F193: =SUBTOTAL(9,F163:F192) -> -18404.70091 | G193: -352.24624 | H193: -5969.30712 | I193: -1242.6769 | J193: -1922.17742 | K193: -1572.10298 | L193: -8032.90064 | M193: -522.30342 | N193: -350.07444 | O193: 0 | P193: -363.08917
A194: 447NPC | B194: NET POWER COSTS | D194: Net Power Cost | E194: CAGW | F194: -78875.72142 | G194: -3172.491434 | H194: -58684.06354 | I194: -17019.16645 | J194: 0 | K194: 0 | L194: 0 | M194: 0 | N194: 0 | O194: 0 | P194: 0
A195: 447NPC Total | F195: =SUBTOTAL(9,F194:F194) -> -78875.72142 | G195: -3172.491434 | H195: -58684.06354 | I195: -17019.16645 | J195: 0 | K195: 0 | L195: 0 | M195: 0 | N195: 0 | O195: 0 | P195: 0
A196: 4471000 | B196: ON-SYS WHOLE-FIRM | C196: 301443 | D196: ON SYS FIRM-UTAH FERC CUSTOMERS | E196: FERC | F196: -14080.32972 | G196: 0 | H196: 0 | I196: 0 | J196: =K196+N196 -> 0 | K196: 0 | L196: 0 | M196: 0 | N196: 0 | O196: -14080.32972 | P196: 0
A197: 4471000 | B197: ON-SYS WHOLE-FIRM | C197: 301445 | D197: On Sys Firm-Utah W/S Customers-Deferral | E197: UT | F197: 78.62341 | G197: 0 | H197: 0 | I197: 0 | J197: 0 | K197: 0 | L197: 78.62341 | M197: 0 | N197: 0 | O197: 0 | P197: 0
A198: 4471000 Total | F198: =SUBTOTAL(9,F196:F197) -> -14001.70631 | G198: 0 | H198: 0 | I198: 0 | J198: 0 | K198: 0 | L198: 78.62341 | M198: 0 | N198: 0 | O198: -14080.32972 | P198: 0
A199: 4475000 | B199: OFF-SYS - NON FIRM | C199: 301408 | D199: OFF-SYSTEM WHOLESALE - NON FIRM | E199: SE | F199: 0.616 | G199: 0.008580613712 | H199: 0.1483823968 | I199: 0.04580950297 | J199: =K199+N199 -> 0.1031064325 | K199: 0.08634600194 | L199: 0.27017524 | M199: 0.03973846187 | N199: 0.01676043052 | O199: 0.0002073521834 | P199: 0
A200: 4475000 Total | F200: =SUBTOTAL(9,F199:F199) -> 0.616 | G200: 0.008580613712 | H200: 0.1483823968 | I200: 0.04580950297 | J200: 0.1031064325 | K200: 0.08634600194 | L200: 0.27017524 | M200: 0.03973846187 | N200: 0.01676043052 | O200: 0.0002073521834 | P200: 0
A201: 4479000 | B201: TRANS SRVC | C201: 301428 | D201: TRANS SERV-UTAH FERC CUSTOMERS | E201: FERC | F201: -82.88942 | G201: 0 | H201: 0 | I201: 0 | J201: =K201+N201 -> 0 | K201: 0 | L201: 0 | M201: 0 | N201: 0 | O201: -82.88942 | P201: 0
A202: 4479000 Total | F202: =SUBTOTAL(9,F201:F201) -> -82.88942 | G202: 0 | H202: 0 | I202: 0 | J202: 0 | K202: 0 | L202: 0 | M202: 0 | N202: 0 | O202: -82.88942 | P202: 0
A203: 4501000 | B203: FORF DISC/INT-RES | C203: 301820 | D203: FORFEITED DISCOUNT REVENUE-RESIDENTIAL | E203: CA | F203: -183.22176 | G203: -183.22176 | H203: 0 | I203: 0 | J203: =K203+N203 -> 0 | K203: 0 | L203: 0 | M203: 0 | N203: 0 | O203: 0 | P203: 0
A204: 4501000 | B204: FORF DISC/INT-RES | C204: 301820 | D204: FORFEITED DISCOUNT REVENUE-RESIDENTIAL | E204: IDU | F204: -209.80578 | G204: 0 | H204: 0 | I204: 0 | J204: 0 | K204: 0 | L204: 0 | M204: -209.80578 | N204: 0 | O204: 0 | P204: 0
A205: 4501000 | B205: FORF DISC/INT-RES | C205: 301820 | D205: FORFEITED DISCOUNT REVENUE-RESIDENTIAL | E205: OR | F205: -3120.82075 | G205: 0 | H205: -3120.82075 | I205: 0 | J205: 0 | K205: 0 | L205: 0 | M205: 0 | N205: 0 | O205: 0 | P205: 0
... 240 more rows
